fUST/lending_fUST_20250727
["ID","MTS","AMOUNT","RATE_DAILY","PERIOD"]
[375184231,1753581050829,-463.76140778,0.00019506,2]
[375184233,1753581050838,-464.3005129,0.00019506,2]
[375184235,1753581050850,-462.14061788,0.00019506,2]
[375184237,1753581050859,-464.88271859,0.00019506,2]
[375184239,1753581050869,-462.00861885,0.00019506,2]
[375184241,1753581050879,-461.77035661,0.00019506,2]
[375184243,1753581050888,-460.0,0.00019506,2]
[375184245,1753581050898,-464.106376,0.00019506,2]
[375184247,1753581050907,-460.0,0.00019506,2]
[375184249,1753581050917,-460.0,0.00019506,2]
[375184251,1753581050926,-460.0,0.00019506,2]
[375184253,1753581050936,-469.55083324,0.00019506,2]
[375184255,1753581050945,-503.0526387,0.00019506,2]
[375184257,1753581050954,-460.0,0.00019506,2]
[375184259,1753581050963,-460.0,0.00019506,2]
[375184261,1753581050973,-462.70126439,0.00019506,2]
[375184263,1753581050981,-463.05906985,0.00019506,2]
[375184265,1753581050991,-460.0,0.00019506,2]
[375184267,1753581051000,-461.75216857,0.00019506,2]
[375184269,1753581051010,-460.0,0.00019506,2]
[375184271,1753581051019,-463.84583748,0.00019506,2]
[375184273,1753581051028,-460.0,0.00019506,2]
[375184275,1753581051038,-461.29986141,0.00019506,2]
[375184277,1753581051047,-460.0,0.00019506,2]
[375184279,1753581051057,-464.47925979,0.00019506,2]
[375184281,1753581051066,-460.0,0.00019506,2]
[375184283,1753581051075,-462.77550724,0.00019506,2]
[375184285,1753581051084,-460.0,0.00019506,2]
[375184287,1753581051093,-460.0,0.00019506,2]
[375184288,1753581051106,-460.0,0.00019506,2]
[375184290,1753581051115,-463.20978813,0.00019506,2]
[375184292,1753581051125,-463.59073791,0.00019506,2]
[375184294,1753581051134,-489.52867343,0.00019506,2]
[375184296,1753581051143,-460.0,0.00019506,2]
[375184298,1753581051153,-462.14343483,0.00019506,2]
[375184300,1753581051163,-460.0,0.00019506,2]
[375184302,1753581051173,-460.0,0.00019506,2]
[375184304,1753581051182,-460.0,0.00019506,2]
[375184306,1753581051191,-3030.31,0.00019506,2]
[375184308,1753581051201,-460.0,0.00019506,2]
[375184310,1753581051210,-461.10686253,0.00019506,2]
[375184312,1753581051219,-1017.69,0.00019506,2]
[375184314,1753581051229,-397.01017787,0.00019506,2]
[375184316,1753581051238,-461.51100591,0.00019506,2]
[375184318,1753581051247,-461.8348976,0.00019506,2]
[375184320,1753581051257,-460.0,0.00019506,2]
[375184322,1753581051266,-1075.9,0.00019506,2]
[375184323,1753581051276,-460.0,0.00019506,2]
[375184324,1753581051285,-462.4124258,0.00019506,2]
[375184325,1753581051295,-460.0,0.00019506,2]
[375184326,1753581051304,-460.0,0.00019506,2]
[375184327,1753581051313,-500.0,0.00019507,2]
[375184328,1753581051323,-4064.15,0.00019507,2]
[375184329,1753581051332,-1162.34,0.00019508,2]
[375184330,1753581051342,-460.0,0.00019508,2]
[375184331,1753581051354,-460.0,0.00019508,2]
[375184332,1753581051363,-460.0,0.00019508,2]
[375184333,1753581051373,-460.0,0.00019508,2]
[375184334,1753581051382,-1676.65,0.00019508,2]
[375184335,1753581051392,-460.0,0.00019508,2]
[375184336,1753581051402,-1307.85,0.00019508,2]
[375184337,1753581051412,-460.0,0.00019508,2]
[375184338,1753581051424,-460.0,0.00019517,2]
[375184339,1753581051433,-460.0,0.00019517,2]
[375184340,1753581051443,-460.0,0.00019517,2]
[375184341,1753581051453,-500.0,0.00019573,2]
[375184342,1753581051463,-500.89933336,0.00019573,2]
[375184343,1753581051473,-500.0,0.00019573,2]
[375184344,1753581051482,-501.3522728,0.00019573,2]
[375184345,1753581051491,-500.0,0.00019573,2]
[375184346,1753581051501,-500.0,0.00019573,2]
[375184347,1753581051510,-500.0,0.00019573,2]
[375184348,1753581051520,-500.0,0.00019573,2]
[375184349,1753581051529,-501.79535777,0.00019573,2]
[375184350,1753581051539,-500.0,0.00019573,2]
[375184351,1753581051555,-500.0,0.00019573,2]
[375184352,1753581051565,-500.45013981,0.00019573,2]
[375184353,1753581051575,-501.46549128,0.00019573,2]
[375184354,1753581051584,-577.89883899,0.00019573,2]
[375184355,1753581051593,-501.37052991,0.00019573,2]
[375184357,1753581051604,-501.23894853,0.00019573,2]
[375184358,1753581051613,-150.0,0.000196,2]
[375184360,1753581051625,-568.24996323,0.00019621,2]
[375184362,1753581051635,-501.09141193,0.00019621,2]
[375184364,1753581051644,-500.59689588,0.00019621,2]
[375184366,1753581051654,-501.01943038,0.00019621,2]
[375184368,1753581051664,-1000.0,0.00019621,2]
[375184370,1753581051674,-500.90115509,0.00019621,2]
[375184372,1753581051683,-861.47258721,0.00019621,2]
[375184374,1753581051693,-501.03659049,0.00019621,2]
[375184376,1753581051703,-151.0,0.000197,2]
[375184378,1753581051712,-500.0,0.00019773,2]
[375184380,1753581051721,-500.0,0.00019773,2]
[375184382,1753581051731,-300.93171024,0.00019773,2]
[375184384,1753581051741,-500.0,0.00019773,2]
[375184386,1753581051750,-500.0,0.00019773,2]
[375184388,1753581051760,-500.0,0.00019773,2]
[375184390,1753581051769,-500.0,0.00019773,2]
[375184392,1753581051779,-500.0,0.00019773,2]
[375184394,1753581051788,-501.5838295,0.00019773,2]
[375184396,1753581051797,-501.61789731,0.00019773,2]
[375184398,1753581051807,-463.24550626,0.00019776,2]
[375184400,1753581051817,-1018.78391515,0.00019776,2]
[375184402,1753581051826,-460.66052795,0.00019776,2]
[375184404,1753581051836,-462.89715557,0.00019776,2]
[375184406,1753581051845,-460.0,0.00019776,2]
[375184408,1753581051855,-463.32436505,0.00019776,2]
[375184410,1753581051865,-463.30594673,0.00019776,2]
[375184412,1753581051875,-462.68140333,0.00019776,2]
[375184425,1753581051988,-460.0,0.00019776,2]
[375184427,1753581051998,-462.26688146,0.00019776,2]
[375184429,1753581052007,-460.0,0.00019776,2]
[375184431,1753581052016,-460.0,0.00019776,2]
[375184433,1753581052026,-460.0,0.00019776,2]
[375184435,1753581052035,-462.94957458,0.00019776,2]
[375184437,1753581052044,-460.0,0.00019776,2]
[375184439,1753581052054,-460.0,0.00019776,2]
[375184441,1753581052063,-460.0,0.00019776,2]
[375184443,1753581052073,-460.0,0.00019776,2]
[375184445,1753581052082,-460.0,0.00019776,2]
[375184447,1753581052091,-460.0,0.00019776,2]
[375184449,1753581052101,-460.0,0.00019776,2]
[375184451,1753581052110,-460.0,0.00019776,2]
[375184453,1753581052119,-460.0,0.00019776,2]
[375184455,1753581052134,-460.0,0.00019776,2]
[375184457,1753581052143,-460.0,0.00019776,2]
[375184459,1753581052153,-462.89399557,0.00019776,2]
[375184461,1753581052162,-464.79876503,0.00019776,2]
[375184463,1753581052171,-461.89669025,0.00019776,2]
[375184465,1753581052180,-460.0,0.00019776,2]
[375184467,1753581052190,-592.80795498,0.00019776,2]
[375184469,1753581052199,-460.0,0.00019776,2]
[375184471,1753581052208,-448.03051027,0.00019776,2]
[375184473,1753581052218,-460.0,0.00019776,2]
[375184475,1753581052227,-465.71289974,0.00019776,2]
[375184477,1753581052237,-460.0,0.00019776,2]
[375184480,1753581052249,-461.52786954,0.00019776,2]
[375184482,1753581052258,-460.0,0.00019776,2]
[375184484,1753581052268,-460.0,0.00019776,2]
[375184486,1753581052277,-460.0,0.00019776,2]
[375184488,1753581052286,-460.0,0.00019776,2]
[375184490,1753581052295,-460.0,0.00019776,2]
[375184492,1753581052304,-460.0,0.00019776,2]
[375184494,1753581052314,-460.0,0.00019776,2]
[375184495,1753581052323,-460.0,0.00019776,2]
[375184497,1753581052332,-464.89945209,0.00019776,2]
[375184499,1753581052342,-460.0,0.00019776,2]
[375184501,1753581052353,-460.0,0.00019776,2]
[375184503,1753581052362,-470.37186854,0.00019776,2]
[375184505,1753581052371,-460.0,0.00019776,2]
[375184507,1753581052381,-460.0,0.00019776,2]
[375184509,1753581052390,-331.7169247,0.00019776,2]
[375184511,1753581052399,-460.0,0.00019776,2]
[375184513,1753581052408,-460.0,0.00019776,2]
[375184515,1753581052419,-460.0,0.00019776,2]
[375184517,1753581052429,-460.0,0.00019776,2]
[375184519,1753581052438,-460.0,0.00019776,2]
[375184521,1753581052448,-460.0,0.00019776,2]
[375184523,1753581052459,-464.36174576,0.00019776,2]
[375184525,1753581052468,-460.0,0.00019776,2]
[375184527,1753581052477,-460.0,0.00019776,2]
[375184529,1753581052487,-460.0,0.00019776,2]
[375184531,1753581052501,-460.0,0.00019776,2]
[375184533,1753581052511,-460.0,0.00019776,2]
[375184536,1753581052521,-460.0,0.00019776,2]
[375184537,1753581052531,-460.0,0.00019776,2]
[375184539,1753581052540,-462.73655047,0.00019776,2]
[375184541,1753581052550,-466.1588809,0.00019776,2]
[375184543,1753581052559,-464.25418673,0.00019776,2]
[375184545,1753581052568,-460.0,0.00019776,2]
[375184547,1753581052578,-460.0,0.00019776,2]
[375184549,1753581052588,-463.22189135,0.00019776,2]
[375184551,1753581052597,-486.57,0.00019776,2]
[375184553,1753581052608,-279.89242143,0.00019776,2]
[375184555,1753581052618,-433.50657445,0.00019776,2]
[375184557,1753581052627,-460.0,0.00019776,2]
[375184559,1753581052637,-460.0,0.00019776,2]
[375184561,1753581052647,-460.0,0.00019776,2]
[375184563,1753581052656,-460.0,0.00019776,2]
[375184565,1753581052666,-460.0,0.00019776,2]
[375184567,1753581052675,-460.0,0.00019776,2]
[375184569,1753581052685,-460.0,0.00019776,2]
[375184571,1753581052694,-460.0,0.00019776,2]
[375184573,1753581052704,-460.0,0.00019776,2]
[375184575,1753581052713,-461.08595297,0.00019776,2]
[375184577,1753581052722,-460.0,0.00019776,2]
[375184579,1753581052732,-460.0,0.00019776,2]
[375184581,1753581052741,-464.08888431,0.00019776,2]
[375184583,1753581052751,-460.0,0.00019776,2]
[375184584,1753581052760,-460.0,0.00019776,2]
[375184586,1753581052769,-460.0,0.00019776,2]
[375184588,1753581052779,-460.0,0.00019776,2]
[375184590,1753581052788,-460.0,0.00019776,2]
[375184592,1753581052798,-460.0,0.00019776,2]
[375184594,1753581052807,-460.0,0.00019776,2]
[375184596,1753581052816,-460.0,0.00019776,2]
[375184598,1753581052826,-460.0,0.00019776,2]
[375184600,1753581052834,-463.5,0.00019776,2]
[375184602,1753581052844,-460.0,0.00019776,2]
[375184604,1753581052855,-460.0,0.00019776,2]
[375184606,1753581052865,-271.49480439,0.00019776,2]
[375184608,1753581052874,-460.0,0.00019776,2]
[375184610,1753581052884,-460.0,0.00019776,2]
[375184612,1753581052893,-460.0,0.00019776,2]
[375184614,1753581052903,-460.0,0.00019776,2]
[375184616,1753581052913,-460.0,0.00019776,2]
[375184618,1753581052923,-446.38125162,0.00019776,2]
[375184620,1753581052932,-460.0,0.00019776,2]
[375184622,1753581052941,-460.0,0.00019776,2]
[375184624,1753581052951,-460.0,0.00019776,2]
[375184626,1753581052960,-461.19983864,0.00019776,2]
[375184628,1753581052970,-460.0,0.00019776,2]
[375184630,1753581052979,-460.0,0.00019776,2]
[375184632,1753581052989,-460.0,0.00019776,2]
[375184634,1753581052999,-464.66429327,0.00019776,2]
[375184636,1753581053008,-460.0,0.00019776,2]
[375184638,1753581053018,-460.0,0.00019776,2]
[375184640,1753581053027,-460.0,0.00019776,2]
[375184642,1753581053037,-460.0,0.00019776,2]
[375184644,1753581053046,-460.0,0.00019776,2]
[375184646,1753581053056,-460.0,0.00019776,2]
[375184648,1753581053065,-462.86982779,0.00019776,2]
[375184650,1753581053075,-460.0,0.00019776,2]
[375184652,1753581053084,-460.0,0.00019776,2]
[375184654,1753581053094,-460.0,0.00019776,2]
[375184656,1753581053103,-460.0,0.00019776,2]
[375184658,1753581053112,-460.0,0.00019776,2]
[375184660,1753581053122,-535.18,0.00019776,2]
[375184662,1753581053131,-512.88,0.00019776,2]
[375184664,1753581053141,-460.0,0.00019776,2]
[375184666,1753581053151,-460.0,0.00019776,2]
[375184668,1753581053160,-460.0,0.00019776,2]
[375184670,1753581053170,-460.0,0.00019776,2]
[375184672,1753581053179,-475.71195921,0.00019776,2]
[375184674,1753581053190,-460.0,0.00019776,2]
[375184676,1753581053199,-462.7997279,0.00019776,2]
[375184678,1753581053209,-460.0,0.00019776,2]
[375184680,1753581053219,-460.0,0.00019776,2]
[375184682,1753581053228,-460.0,0.00019776,2]
[375184684,1753581053237,-460.0,0.00019776,2]
[375184686,1753581053247,-460.0,0.00019776,2]
[375184688,1753581053257,-462.49346041,0.00019776,2]
[375184690,1753581053266,-460.0,0.00019776,2]
[375184692,1753581053275,-460.0,0.00019776,2]
[375184694,1753581053285,-460.0,0.00019776,2]
[375184696,1753581053294,-1072.02,0.00019776,2]
[375184698,1753581053304,-299.00271282,0.00019776,2]
[375184700,1753581053313,-460.0,0.00019776,2]
[375184702,1753581053322,-460.0,0.00019776,2]
[375184704,1753581053331,-460.0,0.00019776,2]
[375184706,1753581053341,-460.0,0.00019776,2]
[375184708,1753581053351,-460.0,0.00019776,2]
[375184710,1753581053360,-460.0,0.00019776,2]
[375184712,1753581053369,-460.0,0.00019776,2]
[375184714,1753581053379,-397.11150348,0.00019776,2]
[375184716,1753581053388,-460.0,0.00019776,2]
[375184718,1753581053397,-460.0,0.00019776,2]
[375184720,1753581053407,-460.0,0.00019776,2]
[375184722,1753581053420,-460.0,0.00019776,2]
[375184724,1753581053429,-460.0,0.00019776,2]
[375184726,1753581053438,-460.0,0.00019776,2]
[375184728,1753581053447,-2025.96,0.00019776,2]
[375184730,1753581053459,-460.0,0.00019776,2]
[375184732,1753581053468,-460.0,0.00019776,2]
[375184734,1753581053477,-460.0,0.00019776,2]
[375184736,1753581053487,-174.06609401,0.00019776,2]
[375184737,1753581053497,-1006.77,0.00019776,2]
[375184739,1753581053508,-460.83384785,0.00019776,2]
[375184741,1753581053517,-460.0,0.00019776,2]
[375184743,1753581053527,-460.0,0.00019776,2]
[375184745,1753581053536,-460.0,0.00019776,2]
[375184747,1753581053546,-460.0,0.00019776,2]
[375184749,1753581053556,-460.0,0.00019776,2]
[375184751,1753581053566,-460.0,0.00019776,2]
[375184753,1753581053575,-460.0,0.00019776,2]
[375184755,1753581053585,-460.0,0.00019776,2]
[375184757,1753581053595,-674.58,0.00019776,2]
[375184759,1753581053604,-460.0,0.00019776,2]
[375184761,1753581053613,-460.0,0.00019776,2]
[375184763,1753581053623,-464.0662017,0.00019776,2]
[375184765,1753581053632,-756.57,0.00019776,2]
[375184767,1753581053642,-460.0,0.00019776,2]
[375184769,1753581053652,-460.0,0.00019776,2]
[375184771,1753581053661,-460.0,0.00019776,2]
[375184773,1753581053671,-460.0,0.00019776,2]
[375184775,1753581053681,-460.0,0.00019776,2]
[375184777,1753581053692,-460.0,0.00019776,2]
[375184779,1753581053702,-471.46,0.00019776,2]
[375184781,1753581053712,-460.0,0.00019776,2]
[375184783,1753581053722,-460.0,0.00019776,2]
[375184785,1753581053733,-462.69178684,0.00019776,2]
[375184787,1753581053747,-464.15505549,0.00019776,2]
[375184789,1753581053757,-460.0,0.00019776,2]
[375184792,1753581053768,-1620.18,0.00019776,2]
[375184793,1753581053778,-460.0,0.00019776,2]
[375184796,1753581053789,-460.0,0.00019776,2]
[375184798,1753581053799,-460.0,0.00019776,2]
[375184800,1753581053808,-460.0,0.00019776,2]
[375184802,1753581053818,-460.0,0.00019776,2]
[375184804,1753581053827,-460.0,0.00019776,2]
[375184805,1753581053837,-460.0,0.00019776,2]
[375184808,1753581053846,-460.0,0.00019776,2]
[375184809,1753581053856,-460.0,0.00019776,2]
[375184811,1753581053866,-460.0,0.00019776,2]
[375184813,1753581053876,-460.0,0.00019776,2]
[375184815,1753581053885,-1840.08,0.00019776,2]
[375184817,1753581053895,-460.0,0.00019776,2]
[375184819,1753581053904,-461.90423407,0.00019776,2]
[375184821,1753581053913,-460.0,0.00019776,2]
[375184822,1753581053923,-460.0,0.00019776,2]
[375184823,1753581053933,-460.0,0.00019776,2]
[375184824,1753581053943,-460.0,0.00019776,2]
[375184825,1753581053952,-460.0,0.00019776,2]
[375184826,1753581053961,-460.0,0.00019776,2]
[375184827,1753581053971,-460.0,0.00019776,2]
[375184828,1753581053980,-460.0,0.00019776,2]
[375184829,1753581053990,-460.0,0.00019776,2]
[375184830,1753581053999,-460.0,0.00019776,2]
[375184832,1753581054008,-460.0,0.00019776,2]
[375184834,1753581054018,-460.00261127,0.00019776,2]
[375184836,1753581054028,-1601.61,0.00019776,2]
[375184838,1753581054037,-343.33392322,0.00019776,2]
[375184840,1753581054047,-460.0,0.00019776,2]
[375184843,1753581054056,-460.0,0.00019776,2]
[375184845,1753581054065,-461.36312231,0.00019776,2]
[375184846,1753581054075,-460.0,0.00019776,2]
[375184848,1753581054084,-460.0,0.00019776,2]
[375184850,1753581054093,-460.0,0.00019776,2]
[375184852,1753581054104,-460.0,0.00019776,2]
[375184854,1753581054113,-460.0,0.00019776,2]
[375184856,1753581054123,-460.0,0.00019776,2]
[375184858,1753581054132,-460.0,0.00019776,2]
[375184860,1753581054142,-462.44327474,0.00019776,2]
[375184862,1753581054153,-460.0,0.00019776,2]
[375184865,1753581054163,-461.6206755,0.00019776,2]
[375184867,1753581054173,-663.29,0.00019776,2]
[375184869,1753581054183,-460.0,0.00019776,2]
[375184871,1753581054192,-522.23,0.00019776,2]
[375184872,1753581054201,-460.0,0.00019776,2]
[375184875,1753581054211,-1432.36,0.00019776,2]
[375184876,1753581054221,-460.0,0.00019776,2]
[375184878,1753581054231,-460.0,0.00019776,2]
[375184880,1753581054240,-460.0,0.00019776,2]
[375184882,1753581054249,-460.0,0.00019776,2]
[375184894,1753581054353,-460.0,0.00019776,2]
[375184897,1753581054364,-463.64445252,0.00019776,2]
[375184899,1753581054374,-466.2528969,0.00019776,2]
[375184901,1753581054384,-460.0,0.00019776,2]
[375184903,1753581054393,-460.0,0.00019776,2]
[375184905,1753581054402,-462.30998622,0.00019776,2]
[375184907,1753581054412,-460.0,0.00019776,2]
[375184909,1753581054424,-460.0,0.00019776,2]
[375184911,1753581054433,-460.0,0.00019776,2]
[375184913,1753581054443,-460.0,0.00019776,2]
[375184915,1753581054454,-5218.69,0.00019776,2]
[375184917,1753581054463,-460.0,0.00019776,2]
[375184919,1753581054472,-663.2,0.00019776,2]
[375184921,1753581054482,-460.0,0.00019776,2]
[375184923,1753581054492,-460.0,0.00019776,2]
[375184924,1753581054502,-460.0,0.00019776,2]
[375184927,1753581054512,-460.0,0.00019776,2]
[375184929,1753581054522,-460.0,0.00019776,2]
[375184930,1753581054531,-460.0,0.00019776,2]
[375184933,1753581054541,-507.63,0.00019776,2]
[375184935,1753581054550,-461.71419773,0.00019776,2]
[375184937,1753581054560,-460.0,0.00019776,2]
[375184939,1753581054570,-460.0,0.00019776,2]
[375184940,1753581054581,-682.33,0.00019776,2]
[375184943,1753581054590,-460.0,0.00019776,2]
[375184944,1753581054601,-460.62184011,0.00019776,2]
[375184947,1753581054611,-417.48721724,0.00019776,2]
[375184948,1753581054620,-460.0,0.00019776,2]
[375184950,1753581054630,-493.1351597,0.00019776,2]
[375184953,1753581054639,-460.0,0.00019776,2]
[375184954,1753581054649,-460.0,0.00019776,2]
[375184957,1753581054659,-460.0,0.00019776,2]
[375184959,1753581054669,-500.0,0.00019778,2]
[375184960,1753581054680,-460.0,0.00019778,2]
[375184963,1753581054690,-4064.15,0.00019778,2]
[375184964,1753581054699,-461.54756932,0.00019779,2]
[375184967,1753581054709,-460.0,0.00019779,2]
[375184968,1753581054718,-460.0,0.00019779,2]
[375184970,1753581054727,-461.93160128,0.00019779,2]
[375184973,1753581054737,-460.0,0.00019779,2]
[375184975,1753581054747,-460.0,0.00019779,2]
[375184976,1753581054756,-532.86695926,0.00019779,2]
[375184979,1753581054766,-460.0,0.00019779,2]
[375184980,1753581054775,-460.0,0.00019779,2]
[375184983,1753581054785,-460.0,0.00019779,2]
[375184985,1753581054795,-460.0,0.00019779,2]
[375184987,1753581054804,-460.0,0.00019779,2]
[375184989,1753581054813,-460.0,0.00019779,2]
[375184991,1753581054823,-460.0,0.00019779,2]
[375184993,1753581054832,-460.0,0.00019779,2]
[375184995,1753581054841,-460.0,0.00019779,2]
[375184997,1753581054851,-460.0,0.00019779,2]
[375184999,1753581054861,-460.0,0.00019779,2]
[375185001,1753581054870,-460.0,0.00019779,2]
[375185003,1753581054880,-460.0,0.00019779,2]
[375185005,1753581054890,-460.0,0.00019779,2]
[375185007,1753581054900,-460.0,0.00019779,2]
[375185009,1753581054910,-460.0,0.00019779,2]
[375185011,1753581054920,-462.37504337,0.00019779,2]
[375185012,1753581054929,-460.0,0.00019779,2]
[375185014,1753581054939,-460.0,0.00019779,2]
[375185016,1753581054948,-460.0,0.00019779,2]
[375185018,1753581054958,-460.0,0.00019779,2]
[375185020,1753581054967,-460.0,0.00019779,2]
[375185022,1753581054976,-460.0,0.00019779,2]
[375185024,1753581054986,-153.50503779,0.00019779,2]
[375185026,1753581054996,-460.0,0.00019779,2]
[375185028,1753581055006,-460.0,0.00019779,2]
[375185030,1753581055016,-460.0,0.00019779,2]
[375185032,1753581055025,-460.0,0.00019779,2]
[375185034,1753581055035,-460.0,0.00019779,2]
[375185036,1753581055044,-460.0,0.00019779,2]
[375185038,1753581055055,-460.0,0.00019779,2]
[375185040,1753581055064,-460.0,0.00019779,2]
[375185042,1753581055074,-460.0,0.00019779,2]
[375185044,1753581055083,-465.13297218,0.0001978,2]
[375185046,1753581055093,-466.14911753,0.0001978,2]
[375185048,1753581055103,-460.0,0.0001978,2]
[375185050,1753581055112,-460.0,0.0001978,2]
[375185052,1753581055121,-460.0,0.0001978,2]
[375185054,1753581055131,-460.0,0.0001978,2]
[375185056,1753581055140,-464.24773841,0.0001978,2]
[375185058,1753581055150,-460.0,0.0001978,2]
[375185060,1753581055159,-472.18868445,0.0001978,2]
[375185062,1753581055168,-465.45528021,0.0001978,2]
[375185064,1753581055177,-460.0,0.0001978,2]
[375185066,1753581055187,-460.0,0.0001978,2]
[375185068,1753581055196,-460.0,0.0001978,2]
[375185070,1753581055206,-460.0,0.0001978,2]
[375185072,1753581055215,-460.0,0.0001978,2]
[375185074,1753581055224,-460.0,0.0001978,2]
[375185076,1753581055234,-460.0,0.0001978,2]
[375185078,1753581055243,-214.18950482,0.0001978,2]
[375185080,1753581055252,-462.65776151,0.0001978,2]
[375185082,1753581055261,-460.0,0.0001978,2]
[375185084,1753581055271,-462.96106996,0.0001978,2]
[375185086,1753581055280,-460.0,0.0001978,2]
[375185088,1753581055289,-466.95373641,0.0001978,2]
[375185090,1753581055299,-460.0,0.0001978,2]
[375185091,1753581055308,-3030.31,0.0001978,2]
[375185093,1753581055318,-460.0,0.0001978,2]
[375185095,1753581055327,-1017.69,0.0001978,2]
[375185097,1753581055336,-460.0,0.0001978,2]
[375185099,1753581055346,-1075.9,0.0001978,2]
[375185101,1753581055356,-461.60662898,0.0001978,2]
[375185103,1753581055365,-460.0,0.0001978,2]
[375185105,1753581055374,-460.0,0.0001978,2]
[375185107,1753581055385,-1162.34,0.00019782,2]
[375185109,1753581055394,-460.0,0.00019782,2]
[375185111,1753581055404,-460.0,0.00019782,2]
[375185113,1753581055416,-460.0,0.00019782,2]
[375185115,1753581055425,-273.87319716,0.00019782,2]
[375185117,1753581055435,-1676.65,0.00019782,2]
[375185119,1753581055444,-460.84773085,0.00019782,2]
[375185121,1753581055453,-1307.85,0.00019782,2]
[375185123,1753581055463,-460.0,0.00019782,2]
[375185125,1753581055472,-464.41132896,0.00019791,2]
[375185127,1753581055482,-464.96040902,0.00019791,2]
[375185129,1753581055493,-460.0,0.00019791,2]
[375185131,1753581055503,-2000.0,0.000198,2]
[375185133,1753581055512,-2000.0,0.000198,3]
[375185135,1753581055522,-332.61914398,0.00019821,2]
[375185137,1753581055531,-502.53665721,0.00019821,2]
[375185139,1753581055541,-501.55322601,0.00019821,2]
[375185141,1753581055551,-1000.0,0.00019821,2]
[375185143,1753581055560,-274.91543485,0.00019821,2]
[375185145,1753581055570,-1000.0,0.00019821,2]
[375185147,1753581055579,-500.74471422,0.00019821,2]
[375185149,1753581055589,-943.73194113,0.00019821,2]
[375185151,1753581055598,-501.12694792,0.00019821,2]
[375185153,1753581055609,-501.22963093,0.00019821,2]
[375185155,1753581055618,-713.696435,0.00019821,2]
[375185157,1753581055628,-501.19702593,0.00019821,2]
[375185158,1753581055637,-500.77006379,0.00019821,2]
[375185160,1753581055647,-500.99428709,0.00019821,2]
[375185162,1753581055656,-501.38750754,0.00019821,2]
[375185164,1753581055666,-1000.0,0.00019821,2]
[375185167,1753581055676,-512.58752256,0.00019821,2]
[375185169,1753581055686,-1000.0,0.00019821,2]
[375185171,1753581055696,-1000.0,0.00019821,2]
[375185173,1753581055705,-419.70348114,0.00019821,2]
[375185174,1753581055715,-503.27121279,0.00019821,2]
[375185176,1753581055724,-420.57,0.00019821,2]
[375185178,1753581055734,-500.0,0.00019892,2]
[375185180,1753581055743,-4064.15,0.00019892,2]
[375185182,1753581055752,-5819.64290367,0.000199,2]
[375185184,1753581055762,-167.48767327,0.0001999,2]
[375185186,1753581055772,-20420.80975323,0.0002001,2]
[375185188,1753581055782,-460.0,0.0002005,2]
[375185190,1753581055792,-460.0,0.0002005,2]
[375185192,1753581055802,-460.0,0.0002005,2]
[375185194,1753581055811,-460.0,0.0002005,2]
[375185196,1753581055821,-460.0,0.0002005,2]
[375185198,1753581055830,-460.0,0.0002005,2]
[375185200,1753581055840,-460.0,0.0002005,2]
[375185202,1753581055849,-460.0,0.0002005,2]